fUST/lending_fUST_20250925
["ID","MTS","AMOUNT","RATE_DAILY","PERIOD"]
[387604354,1758784239274,-406.79269329,0.00021629,2]
[387604356,1758784239285,-500.0,0.00021629,2]
[387604358,1758784239296,-501.7140521,0.00021629,2]
[387604360,1758784239307,-500.0,0.00021629,2]
[387604362,1758784239316,-501.7698393,0.0002165,2]
[387604364,1758784239327,-500.0,0.0002165,2]
[387604366,1758784239336,-1065.10346944,0.00021712,2]
[387604368,1758784239347,-1684.39,0.00021811,2]
[387604370,1758784239358,-612.1,0.00021811,2]
[387604372,1758784239370,-480.0,0.00021817,2]
[387604374,1758784239381,-480.0,0.00021817,2]
[387604376,1758784239392,-233.66602051,0.00021867,2]
[387604378,1758784239403,-160.0,0.0002187,2]
[387604380,1758784239414,-159.45,0.00022,2]
[387604382,1758784239425,-454.40344769,0.00022044,2]
[387604384,1758784239436,-1684.39,0.00022085,2]
[387604386,1758784239448,-612.1,0.00022085,2]
[387604388,1758784239462,-480.0,0.00022091,2]
[387604389,1758784239473,-621.30699316,0.00022091,2]
[387604391,1758784239485,-504.83976007,0.00022177,2]
[387604393,1758784239496,-1000.0,0.00022177,2]
[387604395,1758784239507,-160.0,0.00022186,2]
[387604399,1758784239519,-1000.0,0.00022198,2]
[387604401,1758784239531,-156.96071269,0.00022315,5]
[387604404,1758784239542,-166.25578959,0.00022315,5]
[387604407,1758784239554,-2233.8,0.00022345,10]
[387604410,1758784239564,-2680.56,0.00022355,10]
[387604414,1758784239576,-1684.39,0.00022359,2]
[387604417,1758784239587,-612.1,0.00022359,2]
[387604420,1758784239598,-480.0,0.00022365,2]
[387604423,1758784239610,-504.46953015,0.00022427,2]
[387604426,1758784239621,-500.0,0.00022427,2]
[387604429,1758784239632,-170.1,0.00022484,3]
[387604433,1758784239644,-1065.10346942,0.00022513,2]
[387604435,1758784239655,-500.0,0.00022531,2]
[387604436,1758784239666,-150.0,0.00022616,2]
[387604437,1758784239678,-1684.39,0.00022633,2]
[387604438,1758784239688,-612.1,0.00022633,2]
[387604439,1758784239701,-480.0,0.00022639,2]
[387604440,1758784239712,-1500.0,0.00022724,2]
[387604441,1758784239722,-200.0,0.00022734,2]
[387604442,1758784239732,-1500.0,0.00022746,2]
[387604443,1758784239742,-893.72781622,0.000229,2]
[387604444,1758784239752,-1684.39,0.00022907,2]
[387604445,1758784239763,-612.1,0.00022907,2]
[387604446,1758784239774,-500.0,0.00022912,2]
[387604447,1758784239784,-480.0,0.00022913,2]
[387604448,1758784239795,-100000.0,0.0002299,2]
[387604449,1758784239806,-159.45,0.00023,2]
[387604450,1758784239817,-195.693075,0.00023035,2]
[387604451,1758784239827,-500.0,0.00023048,2]
[387604452,1758784239838,-454.40344769,0.00023116,2]
[387604453,1758784239849,-1684.39,0.00023181,2]
[387604454,1758784239860,-612.1,0.00023181,2]
[387604455,1758784239871,-480.0,0.00023187,2]
[387604456,1758784239882,-500.0,0.00023214,2]
[387604457,1758784239893,-200000.0,0.0002322,2]
[387604458,1758784239905,-418.60072527,0.00023273,2]
[387604459,1758784239916,-749.71,0.00023287,2]
[387604460,1758784239927,-1000.0,0.00023294,2]
[387604461,1758784239939,-1065.10346942,0.00023313,2]
[387604462,1758784239951,-1684.39,0.00023455,2]
[387604463,1758784239963,-612.1,0.00023455,2]
[387604464,1758784239974,-235.40941579,0.00023461,2]
[387604465,1758784239984,-500.0,0.00023522,2]
[387604466,1758784239994,-182.56495849,0.00023592,7]
[387604467,1758784240004,-182.56495849,0.00023592,7]
[387604468,1758784240014,-182.56495849,0.00023592,7]
[387604469,1758784240024,-500.0,0.00023661,2]
[387604470,1758784240035,-1684.39,0.00023729,2]
[387604471,1758784240046,-612.1,0.00023729,2]
[387604472,1758784240057,-159.45,0.00023839,2]
[387604473,1758784240069,-500.0,0.00023847,2]
[387604474,1758784240080,-182.56495849,0.00023869,7]
[387604475,1758784240091,-182.56495849,0.00023869,7]
[387604476,1758784240102,-500.0,0.00023987,2]
[387604477,1758784240113,-1684.39,0.00024003,2]
[387604478,1758784240124,-612.1,0.00024003,2]
[387604479,1758784240134,-581.705,0.00024069,5]
[387604480,1758784240144,-170.1,0.00024076,4]
[387604481,1758784240155,-1065.10346942,0.00024114,2]
[387604482,1758784240167,-182.56495849,0.00024146,14]
[387604483,1758784240182,-182.56495849,0.00024146,14]
[387604484,1758784240192,-500.0,0.00024152,2]
[387604485,1758784240205,-454.40344769,0.00024187,2]
[387604487,1758784240218,-200000.0,0.0002422,2]
[387604489,1758784240229,-1684.39,0.00024277,2]
[387604491,1758784240240,-612.1,0.00024277,2]
[387604492,1758784240251,-505.61204843,0.00024392,2]
[387604493,1758784240262,-574.36899308,0.00024435,2]
[387604494,1758784240272,-181.07,0.000245,2]
[387604495,1758784240282,-1684.39,0.00024551,2]
[387604496,1758784240292,-612.1,0.00024551,2]
[387604497,1758784240302,-436.0,0.00024758,2]
[387604498,1758784240313,-159.45,0.00024758,2]
[387604499,1758784240323,-942.82,0.000248,2]
[387604500,1758784240336,-1684.39,0.00024825,2]
[387604501,1758784240347,-612.1,0.00024825,2]
[387604502,1758784240358,-268.0,0.00024891,7]
[387604503,1758784240368,-167.318059,0.000249,7]
[387604504,1758784240380,-151.0,0.000249,7]
[387604505,1758784240391,-415539.294954,0.000249,2]
[387604506,1758784240401,-153.124884,0.000249,7]
[387604507,1758784240412,-151.0,0.000249,7]
[387604508,1758784240422,-151.0,0.000249,7]
[387604509,1758784240432,-151.0,0.000249,7]
[387604510,1758784240443,-153.072088,0.000249,7]
[387604511,1758784240456,-153.072088,0.000249,7]
[387604512,1758784240468,-153.072088,0.000249,7]
[387604513,1758784240481,-151.0,0.000249,7]
[387604514,1758784240492,-153.072088,0.000249,7]
[387604515,1758784240503,-1065.10346942,0.00024914,2]
[387604516,1758784240513,-268.0,0.00025014,2]
[387604517,1758784240525,-268.0,0.00025086,2]
[387604518,1758784240536,-1007.60962386,0.00025092,2]
[387604519,1758784240547,-536.05859208,0.00025092,2]
[387604520,1758784240558,-1684.39,0.00025099,2]
[387604521,1758784240696,-612.1,0.00025099,2]
[387604522,1758784240709,-893.72781621,0.0002512,2]
[387604523,1758784240719,-749.71,0.00025205,4]
[387604524,1758784240730,-200000.0,0.0002522,2]
[387604525,1758784240741,-4030.43849544,0.00025228,2]
[387604526,1758784240751,-454.40344769,0.00025259,3]
[387604527,1758784240760,-179.62279214,0.00025334,2]
[387604528,1758784240771,-268.0,0.00025352,2]
[387604529,1758784240781,-1684.39,0.00025373,2]
[387604530,1758784240790,-612.1,0.00025373,2]
[387604531,1758784240800,-2142.09013395,0.00025627,2]
[387604532,1758784240810,-1684.55736553,0.00025647,2]
[387604533,1758784240819,-612.26342909,0.00025647,2]
[387604534,1758784240828,-170.1,0.00025669,5]
[387604535,1758784240838,-159.45,0.00025677,7]
[387604536,1758784240847,-268.0,0.0002568,2]
[387604537,1758784240857,-268.0,0.00025709,2]
[387604538,1758784240867,-268.0,0.00025726,2]
[387604539,1758784240877,-150.0,0.00025826,30]
[387604540,1758784240887,-250.0,0.00025865,2]
[387604541,1758784240896,-268.0,0.00025899,2]
[387604542,1758784240906,-268.0,0.00025907,2]
[387604543,1758784240916,-268.0,0.00025944,2]
[387604544,1758784240925,-436.0,0.00026076,7]
[387604545,1758784240935,-268.0,0.00026085,2]
[387604546,1758784240946,-2164.65422951,0.0002622,2]
[387604547,1758784241687,-685.82501686,0.0002622,2]
[387604548,1758784241699,-991.56831074,0.0002622,2]
[387604549,1758784241711,-683.88842277,0.0002622,2]
[387604550,1758784241723,-1058.23592004,0.0002622,2]
[387604637,1758784243482,-7995.00000008,0.0002622,2]
[387604686,1758784244760,-560.97643199,0.0002621,10]
[387604854,1758784246359,-1300.52356801,0.0002621,10]
[387604857,1758784246369,-8872.38327252,0.0002622,2]
[387605309,1758784550474,659.640994,0.00018357,2]
[387605312,1758784584041,300.0,0.000184,2]
[387605313,1758784595515,300.0,0.000184,2]
[387605314,1758784605834,142.52592866,0.000184,2]
[387605315,1758784605858,157.47407134,0.000184,2]
[387605316,1758784616285,193.285666,0.00018351,2]
[387605317,1758784617573,300.0,0.000184,2]
[387605318,1758784628929,300.0,0.000184,2]
[387605319,1758784638228,300.0,0.000184,2]
[387605321,1758784662394,666.0,0.00018349,2]
[387605327,1758784699068,200.0,0.000183,2]
[387605328,1758784700124,-179.10629886,0.00019172,2]
[387605329,1758784708896,-123.31915327,0.00019172,2]
[387605330,1758784708925,-893.72781622,0.00019273,2]
[387605331,1758784708956,-1334.1659051,0.00019273,2]
[387605332,1758784708984,-500.0,0.000193,2]
[387605333,1758784709014,-253.6583438,0.00019345,2]
[387605334,1758784709043,-724.0,0.00019349,2]
[387605335,1758784709077,-300.0,0.00019349,2]
[387605336,1758784709106,-300.0,0.0001935,2]
[387605337,1758784709135,-300.0,0.0001935,2]
[387605338,1758784709164,-242.26756322,0.0001935,2]
[387605339,1758784709493,-57.73243678,0.0001935,2]
[387605340,1758784709521,-300.0,0.0001935,2]
[387605341,1758784709550,-1200.0,0.0001935,2]
[387605342,1758784709581,-480.0,0.0001935,2]
[387605343,1758784709608,-480.0,0.0001935,2]
[387605344,1758784709636,-480.0,0.0001935,2]
[387605345,1758784709664,-564.44633765,0.0001935,2]
[387605346,1758784709692,-421.34813249,0.0001935,2]
[387605347,1758784709727,-480.0,0.0001935,2]
[387605348,1758784709762,-481.9797365,0.0001935,2]
[387605349,1758784718788,-480.0,0.00019349,2]
[387605350,1758784718817,-480.0,0.0001935,2]
[387605351,1758784718848,-480.0,0.0001935,2]
[387605352,1758784718876,-480.0,0.0001935,2]
[387605353,1758784718904,-483.53095551,0.0001935,2]
[387605354,1758784718932,-480.0,0.0001935,2]
[387605355,1758784718959,-185.6036078,0.0001935,2]
[387605356,1758784718988,-480.0,0.0001935,2]
[387605357,1758784719017,-480.0,0.0001935,2]
[387605358,1758784719046,-480.0,0.0001935,2]
[387605359,1758784719075,-278.29114807,0.0001935,2]
[387605360,1758784719249,-431.7302066,0.0001935,2]
[387605361,1758784719278,-484.92148892,0.0001935,2]
[387605362,1758784719307,-484.03797974,0.0001935,2]
[387605363,1758784719337,-480.0,0.0001935,2]
[387605364,1758784719367,-301.90012974,0.0001935,2]
[387605365,1758784719395,-480.0,0.0001935,2]
[387605366,1758784719427,-163.1,0.0001935,2]
[387605367,1758784719456,-480.0,0.0001935,2]
[387605368,1758784719484,-483.01581914,0.0001935,2]
[387605369,1758784719515,-510.76205556,0.0001935,2]
[387605370,1758784719543,-485.91211448,0.0001935,2]
[387605371,1758784719687,-480.0,0.0001935,2]
[387605372,1758784719717,-484.85520433,0.0001935,2]
[387605373,1758784719745,-487.51073594,0.0001935,2]
[387605374,1758784719773,-480.0,0.0001935,2]
[387605375,1758784719802,-480.0,0.0001935,2]
[387605376,1758784719834,-484.43198315,0.0001935,2]
[387605377,1758784719863,-486.19398006,0.0001935,2]
[387605378,1758784719891,-480.0,0.0001935,2]
[387605379,1758784719920,-485.02749771,0.0001935,2]
[387605380,1758784719947,-480.0,0.0001935,2]
[387605381,1758784728996,-480.0,0.0001935,2]
[387605382,1758784729026,-480.0,0.0001935,2]
[387605383,1758784729056,-480.0,0.0001935,2]
[387605384,1758784729085,-489.01548928,0.0001935,2]
[387605385,1758784729117,-483.7198244,0.0001935,2]
[387605386,1758784729147,-483.04708658,0.0001935,2]
[387605387,1758784729176,-484.1744422,0.0001935,2]
[387605388,1758784729208,-480.0,0.0001935,2]
[387605389,1758784729238,-480.0,0.0001935,2]
[387605390,1758784729268,-480.0,0.0001935,2]
[387605391,1758784729369,360.09631508,0.0001935,2]
[387605395,1758784897502,1000.0,0.00018351,2]
[387605401,1758784973825,-152.0,0.00019253,2]
[387605402,1758784975835,-89.46369961,0.00019253,2]
[387605403,1758784980094,253.64869868,0.00018769,2]
[387605405,1758785072390,633.2063346,0.00018496,2]
[387605407,1758785089591,3883.63787326,0.00019078,2]
[387605420,1758785138096,-1067.33272408,0.00019273,2]
[387605421,1758785138122,-500.0,0.000193,2]
[387605422,1758785138151,-523.89333623,0.00019347,2]
[387605424,1758785146970,480.0,0.0001935,120]
[387605425,1758785153108,191.0814441,0.0001835,2]
[387605434,1758785232079,-258.47603764,0.00019273,2]
[387605439,1758785244127,-159.38126818,0.00019273,2]
[387605442,1758785267991,328.3283434,0.00018348,2]
[387605444,1758785269426,5596.96233924,0.00018,2]
[387605445,1758785269452,10000.01,0.00018,2]
[387605446,1758785269479,10000.01,0.00018,2]
[387605447,1758785269505,10000.01,0.00018,2]
[387605448,1758785269531,10000.01,0.00018,2]
[387605449,1758785269558,3449.75142896,0.00018,2]
[387605458,1758785403462,156.96071269,0.00018589,2]
[387605459,1758785405593,166.25578959,0.00018589,2]
[387605928,1758785437636,-853.86617924,0.00019273,2]
[387605930,1758785437647,-500.0,0.000193,2]
[387605932,1758785437657,-221.0,0.00019343,2]
[387605933,1758785437668,-300.0,0.00019343,2]
[387605935,1758785437680,-173.0,0.00019343,2]
[387605937,1758785437689,-559.0,0.00019343,2]
[387605939,1758785437698,-8235.0700465,0.00019344,2]
[387605941,1758785437708,-658.01844446,0.00019347,2]
[387605943,1758785437719,-399.64776656,0.00019347,2]
[387605944,1758785437728,-11268.58436743,0.00019348,2]
[387605946,1758785437739,-482.9208736,0.00019348,2]
[387605948,1758785437748,-492.06452817,0.00019348,2]
[387605950,1758785437759,-480.0,0.00019348,2]
[387605952,1758785437768,-480.0,0.00019348,2]
[387605954,1758785437778,-480.0,0.00019348,2]
[387605956,1758785437788,-480.0,0.00019348,2]
[387605958,1758785437797,-480.0,0.00019348,2]
[387605959,1758785437806,-480.0,0.00019348,2]
[387605962,1758785437816,-448.85228471,0.00019348,2]
[387605965,1758785437825,-480.0,0.00019348,2]
[387605968,1758785437834,-480.0,0.00019348,2]
[387605971,1758785437843,-480.0,0.00019348,2]
[387605974,1758785437853,-480.0,0.00019348,2]
[387605976,1758785437863,-480.0,0.00019348,2]
[387605979,1758785437872,-498.18537034,0.00019348,2]
[387605982,1758785437881,-480.0,0.00019348,2]
[387605985,1758785437892,-480.0,0.00019348,2]
[387605988,1758785437901,-480.0,0.00019348,2]
[387605991,1758785437910,-506.6730701,0.00019348,2]
[387605993,1758785437919,-480.0,0.00019348,2]
[387605996,1758785437929,-480.0,0.00019348,2]
[387605999,1758785437938,-480.0,0.00019348,2]
[387606002,1758785437948,-480.0,0.00019348,2]
[387606005,1758785437956,-480.0,0.00019348,2]
[387606007,1758785437967,-482.90157627,0.00019348,2]
[387606008,1758785437976,-483.4617879,0.00019348,2]
[387606010,1758785437985,-480.0,0.00019348,2]
[387606012,1758785437995,-480.0,0.00019348,2]
[387606014,1758785438004,-485.78060634,0.00019348,2]
[387606016,1758785438013,-488.36516026,0.00019348,2]
[387606018,1758785438023,-361.45056554,0.00019348,2]
[387606020,1758785438032,-480.0,0.00019348,2]
[387606021,1758785438041,-480.0,0.00019348,2]
[387606023,1758785438050,-480.0,0.00019348,2]
[387606025,1758785438059,-480.0,0.00019348,2]
[387606027,1758785438069,-480.0,0.00019348,2]
[387606029,1758785438078,-480.0,0.00019348,2]
[387606031,1758785438087,-480.0,0.00019348,2]
[387606033,1758785438097,-480.0,0.00019348,2]
[387606034,1758785438107,-480.0,0.00019348,2]
[387606036,1758785438116,-480.0,0.00019348,2]
[387606038,1758785438126,-500.0,0.00019348,2]
[387606040,1758785438135,-500.0,0.00019348,2]
[387606042,1758785438145,-500.0,0.00019348,2]
[387606043,1758785438154,-500.0,0.00019348,2]
[387606044,1758785438165,-500.0,0.00019348,2]
[387606045,1758785438174,-500.0,0.00019348,2]
[387606046,1758785438183,-500.0,0.00019348,2]
[387606047,1758785438193,-500.43516638,0.00019348,2]
[387606048,1758785438202,-500.0,0.00019348,2]
[387606049,1758785438211,-500.0,0.00019348,2]
[387606050,1758785438222,-500.0,0.00019348,2]
[387606051,1758785438231,-500.0,0.00019348,2]
[387606052,1758785438240,-594.25234051,0.00019348,2]
[387606053,1758785438249,-500.0,0.00019348,2]
[387606054,1758785438259,-525.33205133,0.00019348,2]
[387606055,1758785438268,-500.0,0.00019348,2]
[387606056,1758785438277,-500.0,0.00019348,2]
[387606057,1758785438287,-500.0,0.00019348,2]
[387606058,1758785438296,-500.0,0.00019348,2]
[387606059,1758785438306,-500.0,0.00019348,2]
[387606060,1758785438315,-500.0,0.00019348,2]
[387606061,1758785438325,-500.0,0.00019348,2]
[387606062,1758785438334,-500.0,0.00019348,2]
[387606063,1758785438343,-500.0,0.00019348,2]
[387606064,1758785438352,-500.0,0.00019348,2]
[387606065,1758785438362,-500.0,0.00019348,2]
[387606066,1758785438371,-500.0,0.00019348,2]
[387606067,1758785438380,-500.0,0.00019348,2]
[387606068,1758785438390,-500.0,0.00019348,2]
[387606069,1758785438399,-500.0,0.00019348,2]
[387606070,1758785438408,-500.0,0.00019348,2]
[387606071,1758785438418,-500.0,0.00019348,2]
[387606072,1758785438427,-500.0,0.00019348,2]
[387606073,1758785438436,-500.0,0.00019348,2]
[387606074,1758785438446,-500.0,0.00019348,2]
[387606075,1758785438455,-500.0,0.00019348,2]
[387606076,1758785438465,-500.0,0.00019348,2]
[387606077,1758785438474,-500.0,0.00019348,2]
[387606078,1758785438487,-500.0,0.00019348,2]
[387606079,1758785438497,-500.0,0.00019348,2]
[387606080,1758785438506,-500.0,0.00019348,2]
[387606081,1758785438516,-500.0,0.00019348,2]
[387606082,1758785438526,-500.0,0.00019348,2]
[387606083,1758785438536,-500.0,0.00019348,2]
[387606084,1758785438545,-500.0,0.00019348,2]
[387606085,1758785438555,-500.0,0.00019348,2]
[387606086,1758785438564,-500.0,0.00019348,2]
[387606087,1758785438573,-500.0,0.00019348,2]
[387606088,1758785438582,-500.0,0.00019348,2]
[387606089,1758785438592,-513.21764064,0.00019348,2]
[387606090,1758785438600,-500.0,0.00019348,2]
[387606091,1758785438610,-500.0,0.00019348,2]
[387606092,1758785438619,-500.0,0.00019348,2]
[387606093,1758785438628,-500.0,0.00019348,2]
[387606094,1758785438637,-500.0,0.00019348,2]
[387606095,1758785438646,-500.0,0.00019348,2]
[387606096,1758785438655,-500.0,0.00019348,2]
[387606097,1758785438667,-500.0,0.00019348,2]
[387606098,1758785438677,-500.0,0.00019348,2]
[387606099,1758785438686,-500.0,0.00019348,2]
[387606100,1758785438695,-500.0,0.00019348,2]
[387606101,1758785438704,-500.0,0.00019348,2]
[387606102,1758785438714,-500.0,0.00019348,2]
[387606103,1758785438723,-500.0,0.00019348,2]
[387606104,1758785438732,-500.0,0.00019348,2]
[387606105,1758785438843,-600.0,0.00019348,2]
[387606106,1758785438853,-500.0,0.00019348,2]
[387606107,1758785438863,-500.0,0.00019348,2]
[387606108,1758785438873,-500.0,0.00019348,2]
[387606109,1758785438883,-500.0,0.00019348,2]
[387606110,1758785438893,-500.0,0.00019348,2]
[387606112,1758785438903,-500.0,0.00019348,2]
[387606113,1758785438913,-500.0,0.00019348,2]
[387606114,1758785438923,-500.0,0.00019348,2]
[387606115,1758785438933,-500.0,0.00019348,2]
[387606117,1758785438943,-500.0,0.00019348,2]
[387606118,1758785438952,-500.0,0.00019348,2]
[387606120,1758785438962,-500.0,0.00019348,2]
[387606121,1758785438972,-500.0,0.00019348,2]
[387606122,1758785438982,-309.49608367,0.00019349,2]
[387606124,1758785438991,-480.0,0.00019349,2]
[387606126,1758785439000,-481.9363071,0.00019349,2]
[387606128,1758785439009,-480.0,0.00019349,2]
[387606130,1758785439019,-217.6101427,0.00019349,2]
[387606132,1758785439028,-480.0,0.00019349,2]
[387606134,1758785439037,-484.85974091,0.00019349,2]
[387606136,1758785439046,-480.0,0.00019349,2]
[387606138,1758785439055,-480.74338327,0.00019349,2]
[387606140,1758785439065,-480.0,0.00019349,2]
[387606142,1758785439075,-481.4315711,0.00019349,2]
[387606144,1758785439084,-480.0,0.00019349,2]
[387606146,1758785439093,-550.47440686,0.00019349,2]
[387606148,1758785439102,-480.0,0.00019349,2]
[387606150,1758785439111,-480.0,0.00019349,2]
[387606152,1758785439120,-480.0,0.00019349,2]
[387606154,1758785439129,-480.0,0.00019349,2]
[387606156,1758785439138,-483.12567442,0.00019349,2]
[387606158,1758785439148,-485.12595945,0.00019349,2]
[387606160,1758785439157,-480.0,0.00019349,2]
[387606162,1758785439166,-480.0,0.00019349,2]
[387606164,1758785439176,-480.0,0.00019349,2]
[387606166,1758785439185,-480.0,0.00019349,2]
[387606168,1758785439194,-501.91644137,0.00019349,2]
[387606170,1758785439203,-480.0,0.00019349,2]
[387606172,1758785439213,-480.0,0.00019349,2]
[387606173,1758785439222,-480.0,0.00019349,2]
[387606175,1758785439231,-480.0,0.00019349,2]
[387606177,1758785439240,-11774.5626467,0.00019349,2]
[387606179,1758785439249,-489.98139539,0.00019349,2]
[387606181,1758785439258,-480.65756753,0.00019349,2]
[387606183,1758785439268,-480.0,0.00019349,2]
[387606185,1758785439277,-480.0,0.00019349,2]
[387606187,1758785439287,-480.0,0.00019349,2]
[387606189,1758785439296,-480.0,0.00019349,2]
[387606191,1758785439305,-480.0,0.00019349,2]
[387606193,1758785439314,-480.0,0.00019349,2]
[387606195,1758785439323,-480.0,0.00019349,2]
[387606197,1758785439332,-480.0,0.00019349,2]
[387606199,1758785439342,-480.0,0.00019349,2]
[387606201,1758785439351,-480.0,0.00019349,2]
[387606203,1758785439360,-461.66158068,0.00019349,2]
[387606205,1758785439369,-480.0,0.00019349,2]
[387606207,1758785439379,-486.34116825,0.00019349,2]
[387606209,1758785439389,-481.6497494,0.00019349,2]
[387606211,1758785439399,-492.62028725,0.00019349,2]
[387606213,1758785439408,-483.87847829,0.00019349,2]
[387606215,1758785439418,-499.76388777,0.00019349,2]
[387606217,1758785439427,-505.11565892,0.00019349,2]
[387606219,1758785439437,-487.73378386,0.00019349,2]
[387606221,1758785439446,-471.53835768,0.00019349,2]
[387606223,1758785439460,-482.26485334,0.00019349,2]
[387606225,1758785439470,-480.0,0.00019349,2]
[387606227,1758785439479,-498.17746163,0.00019349,2]
[387606229,1758785439489,-480.0,0.00019349,2]
[387606231,1758785439499,-260.70385076,0.00019349,2]
[387606233,1758785439508,-486.00631827,0.00019349,2]
[387606235,1758785439517,-487.17079076,0.00019349,2]
[387606237,1758785439527,-506.88400056,0.00019349,2]
[387606239,1758785439536,-484.13557757,0.00019349,2]
[387606241,1758785439546,-480.0,0.00019349,2]
[387606243,1758785439555,-480.0,0.00019349,2]
[387606245,1758785439565,-480.0,0.00019349,2]
[387606247,1758785439574,-480.0,0.00019349,2]
[387606249,1758785439584,-484.05052679,0.00019349,2]
[387606251,1758785439593,-480.0,0.00019349,2]
[387606253,1758785439602,-480.0,0.00019349,2]
[387606255,1758785439611,-480.0,0.00019349,2]
[387606257,1758785439621,-592.21760647,0.00019349,2]
[387606259,1758785439630,-500.68798729,0.00019349,2]
[387606261,1758785439639,-480.0,0.00019349,2]
[387606263,1758785439649,-480.0,0.00019349,2]
[387606265,1758785439659,-240.2621956,0.00019349,2]
[387606268,1758785439677,-241.237772,0.00019349,2]
[387606269,1758785439688,-480.0,0.00019349,2]
[387606271,1758785439697,-480.0,0.00019349,2]
[387606273,1758785439708,-480.0,0.00019349,2]
[387606275,1758785439718,-480.0,0.00019349,2]
[387606278,1758785439728,-480.0,0.00019349,2]
[387606280,1758785439738,-480.0,0.00019349,2]
[387606282,1758785439749,-480.0,0.00019349,2]
[387606284,1758785439759,-480.0,0.00019349,2]
[387606286,1758785439769,-480.0,0.00019349,2]
[387606287,1758785439778,-480.0,0.00019349,2]
[387606289,1758785439789,-466.30498109,0.00019349,2]
[387606292,1758785439799,-480.0,0.00019349,2]
[387606293,1758785439808,-480.0,0.00019349,2]
[387606296,1758785439818,-480.0,0.00019349,2]
[387606297,1758785439828,-480.0,0.00019349,2]
[387606300,1758785439838,-480.0,0.00019349,2]
[387606302,1758785439847,-480.0,0.00019349,2]
[387606304,1758785439857,-480.0,0.00019349,2]
[387606307,1758785439866,-480.0,0.00019349,2]
[387606308,1758785439876,-488.41674974,0.00019349,2]
[387606310,1758785439886,-486.388033,0.0001935,2]
[387606313,1758785439895,-490.08160468,0.0001935,2]
[387606314,1758785439904,-480.0,0.0001935,2]
[387606316,1758785439914,-480.0,0.0001935,2]
[387606318,1758785439923,-480.0,0.0001935,2]
[387606320,1758785439933,-482.12407752,0.0001935,2]
[387606322,1758785439942,-480.0,0.0001935,2]
[387606325,1758785439953,-480.0,0.0001935,2]
[387606327,1758785439962,-480.0,0.0001935,2]
[387606328,1758785439973,-480.0,0.0001935,2]
[387606331,1758785439982,-482.52418088,0.0001935,2]
[387606332,1758785439992,-318.96753622,0.0001935,2]
[387606334,1758785440002,-480.0,0.0001935,2]
[387606336,1758785440012,-483.06904164,0.0001935,2]
[387606338,1758785440021,-480.0,0.0001935,2]
[387606340,1758785440031,-480.0,0.0001935,2]
[387606342,1758785440040,-480.0,0.0001935,2]
[387606344,1758785440050,-482.24775397,0.0001935,2]
[387606346,1758785440060,-184.54044621,0.0001935,2]
[387606348,1758785440070,-510.6344088,0.0001935,2]
[387606350,1758785440079,-480.0,0.0001935,2]
[387606352,1758785440089,-486.56926054,0.0001935,2]
[387606354,1758785440098,-481.48515431,0.0001935,2]
[387606357,1758785440108,-481.22453331,0.0001935,2]
[387606359,1758785440117,-481.29974181,0.0001935,2]
[387606361,1758785440127,-504.28477348,0.0001935,2]
[387606362,1758785440136,-482.80591729,0.0001935,2]
[387606364,1758785440146,-458.07196088,0.0001935,2]